[Event "Vener-dì-Rapid"]
[Site "Chess.com"]
[Date "2020.05.22"]
[Round "4"]
[White "pedrak"]
[Black "Mrtre7"]
[Result "0-1"]
[WhiteElo "1681"]
[BlackElo "1441"]
[TimeControl "720+3"]
[EndTime "13:32:34 PDT"]
[Termination "Mrtre7 ha vinto per abbandono"]

1. d4 {[%clk 0:12:02.9]} 1... d5 {[%clk 0:11:51.9]} 2. Nf3 {[%clk 0:12:04.3]}
2... c6 {[%clk 0:11:51.7]} 3. Bf4 {[%clk 0:12:05.5]} 3... Nf6 {[%clk 0:11:46.5]}
4. e3 {[%clk 0:12:06.7]} 4... Bf5 {[%clk 0:11:47.5]} 5. Bd3 {[%clk 0:12:05.8]}
5... e6 {[%clk 0:11:39.1]} 6. O-O {[%clk 0:12:05.9]} 6... Bd6 {[%clk 0:11:23]}
7. Bg3 {[%clk 0:12:03.7]} 7... Bxg3 {[%clk 0:11:02.9]} 8. hxg3 {[%clk
0:12:03.8]} 8... Qd6 {[%clk 0:10:58.6]} 9. Ne5 {[%clk 0:12:01.8]} 9... Nbd7
{[%clk 0:10:56.6]} 10. f4 {[%clk 0:12:03.3]} 10... Ne4 {[%clk 0:10:49.3]} 11.
Qe2 {[%clk 0:11:45.7]} 11... Nxg3 {[%clk 0:10:45.4]} 12. Qf3 {[%clk 0:11:46.5]}
12... Nxf1 {[%clk 0:10:46]} 13. Qxf1 {[%clk 0:11:47.6]} 13... O-O-O {[%clk
0:09:01.1]} 14. Nc3 {[%clk 0:11:38.6]} 14... Nxe5 {[%clk 0:08:19.2]} 15. fxe5
{[%clk 0:11:36.6]} 15... Qd7 {[%clk 0:08:06.8]} 16. b4 {[%clk 0:11:36.8]} 16...
Bxd3 {[%clk 0:08:08.3]} 17. cxd3 {[%clk 0:11:35.2]} 17... Kb8 {[%clk 0:07:54.1]}
18. a4 {[%clk 0:11:33.2]} 18... f6 {[%clk 0:07:43.6]} 19. exf6 {[%clk
0:11:32.3]} 19... gxf6 {[%clk 0:07:45.3]} 20. b5 {[%clk 0:11:30.2]} 20... Qd6
{[%clk 0:07:27.8]} 21. Qb1 {[%clk 0:11:23.5]} 21... Rhg8 {[%clk 0:07:16.8]} 22.
a5 {[%clk 0:11:14.4]} 22... Qg3 {[%clk 0:06:08.9]} 23. Ra2 {[%clk 0:10:48]}
23... Qxe3+ {[%clk 0:06:04.3]} 24. Kf1 {[%clk 0:10:40.7]} 24... c5 {[%clk
0:04:53.2]} 25. Re2 {[%clk 0:10:13.7]} 25... Qxd4 {[%clk 0:04:48.2]} 26. Qc2
{[%clk 0:10:08.3]} 26... Rg3 {[%clk 0:04:30.9]} 27. Rd2 {[%clk 0:09:52.1]} 27...
Rdg8 {[%clk 0:04:05.8]} 28. Ne2 {[%clk 0:09:36.4]} 28... Qb4 {[%clk 0:01:58.9]}
29. Nxg3 {[%clk 0:09:25.9]} 29... Rxg3 {[%clk 0:02:00.4]} 30. b6 {[%clk
0:09:09.7]} 30... Qxa5 {[%clk 0:01:53.6]} 31. bxa7+ {[%clk 0:09:10.3]} 31...
Qxa7 {[%clk 0:01:54.7]} 32. Qb2 {[%clk 0:08:58.5]} 32... Rg4 {[%clk 0:01:52.6]}
33. Qb5 {[%clk 0:08:51.7]} 33... Qa6 {[%clk 0:01:49.6]} 34. Qe8+ {[%clk
0:08:50.8]} 34... Kc7 {[%clk 0:01:45.5]} 35. Qf7+ {[%clk 0:08:46.8]} 35... Kb8
{[%clk 0:01:45.7]} 36. Qxh7 {[%clk 0:08:42.9]} 36... Qa1+ {[%clk 0:01:47]} 37.
Kf2 {[%clk 0:08:44.7]} 37... Qd4+ {[%clk 0:01:48.5]} 38. Kf1 {[%clk 0:08:36.4]}
38... Qf4+ {[%clk 0:01:48.3]} 39. Rf2 {[%clk 0:08:36.2]} 39... Qc1+ {[%clk
0:01:48.9]} 40. Ke2 {[%clk 0:08:37.7]} 40... Qc2+ {[%clk 0:01:48.8]} 41. Kf3
{[%clk 0:08:39.2]} 41... Rf4+ {[%clk 0:01:47.9]} 42. Kxf4 {[%clk 0:08:38.9]}
42... Qxf2+ {[%clk 0:01:49.5]} 43. Kg4 {[%clk 0:08:37.7]} 43... Qxg2+ {[%clk
0:01:51.4]} 44. Kf4 {[%clk 0:08:39.6]} 44... Qd2+ {[%clk 0:01:52.5]} 45. Kg3
{[%clk 0:08:37.8]} 45... c4 {[%clk 0:01:54.4]} 46. Qg8+ {[%clk 0:08:36.5]} 46...
Ka7 {[%clk 0:01:55.8]} 47. dxc4 {[%clk 0:08:37.4]} 47... Qd3+ {[%clk 0:01:56.1]}
48. Kg2 {[%clk 0:08:37.1]} 48... Qxc4 {[%clk 0:01:56.2]} 49. Qxe6 {[%clk
0:08:38.5]} 49... Qc2+ {[%clk 0:01:52]} 50. Kg3 {[%clk 0:08:38.6]} 50... d4
{[%clk 0:01:53.9]} 51. Qxf6 {[%clk 0:08:30.4]} 51... d3 {[%clk 0:01:53.7]} 52.
Qd4+ {[%clk 0:08:31.3]} 52... Ka6 {[%clk 0:01:52.1]} 53. Qd6+ {[%clk 0:08:32.2]}
53... b6 {[%clk 0:01:48.6]} 54. Qa3+ {[%clk 0:08:27.6]} 54... Kb7 {[%clk
0:01:50.5]} 55. Qe7+ {[%clk 0:08:28.3]} 55... Qc7+ {[%clk 0:01:49.3]} 56. Qxc7+
{[%clk 0:08:23.5]} 56... Kxc7 {[%clk 0:01:50]} 57. Kf3 {[%clk 0:08:25.2]} 57...
Kc6 {[%clk 0:01:45.9]} 58. Ke3 {[%clk 0:08:26.9]} 58... d2 {[%clk 0:01:26.3]}
59. Kxd2 {[%clk 0:08:28.2]} 59... Kb5 {[%clk 0:01:18]} 60. Kc1 {[%clk 0:08:16]}
60... Kb4 {[%clk 0:01:03.9]} 61. Kb2 {[%clk 0:08:16.5]} 61... b5 {[%clk
0:00:58.2]} 62. Kc2 {[%clk 0:08:00.5]} 62... Ka3 {[%clk 0:00:44.2]} 63. Kc1
{[%clk 0:07:59.2]} 63... Ka2 {[%clk 0:00:36.5]} 64. Kc2 {[%clk 0:07:57.5]} 64...
b4 {[%clk 0:00:36.5]} 0-1

[Event "Vener-dì-Rapid"]
[Site "Chess.com"]
[Date "2020.05.22"]
[Round "4"]
[White "malberici"]
[Black "Luca090267"]
[Result "0-1"]
[WhiteElo "1402"]
[BlackElo "1459"]
[TimeControl "720+3"]
[EndTime "13:33:33 PDT"]
[Termination "Luca090267 ha vinto per scaccomatto"]

1. d4 {[%clk 0:12:00.7]} 1... Nf6 {[%clk 0:12:00.7]} 2. c4 {[%clk 0:12:01.2]}
2... c5 {[%clk 0:12:01.5]} 3. dxc5 {[%clk 0:12:02]} 3... Qa5+ {[%clk 0:11:53.2]}
4. Nc3 {[%clk 0:11:56.3]} 4... Qxc5 {[%clk 0:11:54.9]} 5. e3 {[%clk 0:11:56.5]}
5... g6 {[%clk 0:11:50.9]} 6. Nf3 {[%clk 0:11:48.8]} 6... Bg7 {[%clk 0:11:49.6]}
7. Be2 {[%clk 0:11:48.9]} 7... O-O {[%clk 0:11:47.2]} 8. O-O {[%clk 0:11:49.5]}
8... d6 {[%clk 0:11:34.9]} 9. a3 {[%clk 0:11:48]} 9... a6 {[%clk 0:11:25.5]} 10.
b4 {[%clk 0:11:48.5]} 10... Qc7 {[%clk 0:11:26.3]} 11. Bb2 {[%clk 0:11:49.1]}
11... Nc6 {[%clk 0:11:16.4]} 12. Nd5 {[%clk 0:11:14.8]} 12... Nxd5 {[%clk
0:11:16.5]} 13. Bxg7 {[%clk 0:11:15.3]} 13... Kxg7 {[%clk 0:11:14.9]} 14. Qxd5
{[%clk 0:11:13]} 14... e6 {[%clk 0:10:54.7]} 15. Qe4 {[%clk 0:10:58.3]} 15... f5
{[%clk 0:10:29.7]} 16. Qh4 {[%clk 0:10:52.6]} 16... Qe7 {[%clk 0:09:17.6]} 17.
Qg3 {[%clk 0:10:16.1]} 17... e5 {[%clk 0:09:03.6]} 18. h4 {[%clk 0:09:44]} 18...
Be6 {[%clk 0:08:39.1]} 19. h5 {[%clk 0:09:37.9]} 19... f4 {[%clk 0:07:27]} 20.
exf4 {[%clk 0:09:24.4]} 20... Rxf4 {[%clk 0:07:27.6]} 21. hxg6 {[%clk
0:09:05.7]} 21... Rg4 {[%clk 0:07:00.3]} 22. Qh2 {[%clk 0:08:47]} 22... Rxg6
{[%clk 0:06:59.2]} 23. b5 {[%clk 0:08:43.3]} 23... axb5 {[%clk 0:06:34.3]} 24.
cxb5 {[%clk 0:08:44.1]} 24... e4 {[%clk 0:05:42.2]} 25. Nh4 {[%clk 0:08:02.1]}
25... Nd4 {[%clk 0:05:36.1]} 26. Bd1 {[%clk 0:07:35.9]} 26... Rh6 {[%clk
0:04:49.2]} 27. Qg3+ {[%clk 0:07:10.4]} 27... Kh8 {[%clk 0:04:40.9]} 28. Qc3
{[%clk 0:06:55.9]} 28... Qxh4 {[%clk 0:04:24.1]} 29. Qxd4+ {[%clk 0:06:51.3]}
29... Kg8 {[%clk 0:04:20.2]} 30. f3 {[%clk 0:06:38.8]} 30... Rf8 {[%clk
0:02:59.9]} 31. Qxe4 {[%clk 0:06:23]} 31... Qh2+ {[%clk 0:02:46.4]} 32. Kf2
{[%clk 0:06:23.8]} 32... Rg6 {[%clk 0:02:24.2]} 33. Bc2 {[%clk 0:05:48.4]} 33...
Qxg2+ {[%clk 0:02:07.5]} 34. Ke3 {[%clk 0:05:30.6]} 34... Qg5+ {[%clk
0:02:05.7]} 35. Kd4 {[%clk 0:05:25.1]} 35... Qc5+ {[%clk 0:01:50.5]} 36. Kd3
{[%clk 0:05:18.1]} 36... Bf5 {[%clk 0:01:47.8]} 37. Bb3+ {[%clk 0:05:02.6]}
37... Kg7 {[%clk 0:01:48.3]} 38. Rae1 {[%clk 0:05:02.1]} 38... Bxe4+ {[%clk
0:01:48.4]} 39. Rxe4 {[%clk 0:04:57.9]} 39... Qxa3 {[%clk 0:01:30.6]} 40. Kc3
{[%clk 0:04:42]} 40... Qc5+ {[%clk 0:01:27.5]} 41. Rc4 {[%clk 0:04:39]} 41...
Qe3+ {[%clk 0:01:26.5]} 42. Kb4 {[%clk 0:04:37.4]} 42... Qd2+ {[%clk 0:01:02.4]}
43. Ka3 {[%clk 0:04:30.9]} 43... Ra8+ {[%clk 0:01:01]} 44. Ra4 {[%clk
0:04:17.3]} 44... Rxa4+ {[%clk 0:01:02.4]} 45. Kxa4 {[%clk 0:04:16.3]} 45... b6
{[%clk 0:00:51]} 46. Rd1 {[%clk 0:04:11.3]} 46... Qa5# {[%clk 0:00:52]} 0-1